Body Name,Body Unit,Service Label ,Service Code,Organisation Unit,Expenditure,Calc Payment Date,Transaction,Net Payment,Supplier Name,Supplier ID,Invoice No,Gross/Payment,Value 2,,
North West Leicestershire District Council ,31UH ,HPLC,Leisure Centres,Hood Park Leisure Centre,Small civils and plant hire,18/07/2012,1239409,500.00,Cuckoo Gap Limited,A000438,997380,600.00,100.00,,
North West Leicestershire District Council ,31UH ,HPLC,Leisure Centres,Hood Park Leisure Centre,Doors - Servicing Automatic - Leisure,25/07/2012,1240402,500.00,Dorma Uk Limited,A025983,901054467,600.00,100.00,,
North West Leicestershire District Council ,31UH ,CULTIC,Leisure & Culture,Cultural Services TIC,Festival,25/07/2012,1240338,504.00,AFFC,A030722,AFFCFESTIVAL2012PT1,504.00,0.00,,
North West Leicestershire District Council ,31UH ,HRAHRM,Housing Repairs,HRA Housing Repairs & Maintenance,Gas & Electricity - Boiler replacement,25/07/2012,1240577,505.94,Lakers UK,A031787,IN00014380,607.13,101.19,,
North West Leicestershire District Council ,31UH ,ENOP,Street Management,Environment Parks,Plumbing & Heating Contractors,18/07/2012,1239454,510.80,Palmar & Associates Ltd,A008325,5430,612.96,102.16,,
North West Leicestershire District Council ,31UH ,FINPLA,Finance,Financial Planning,Insurance policies,18/07/2012,1239871,514.79,Zurich Insurance Company,A001836,I4380,514.79,0.00,,
North West Leicestershire District Council ,31UH ,HRAHM,Housing,HRA Housing Management,Alarms - older persons system repairs and maintenance,04/07/2012,1239263,515.00,Tunstall Healthcare (UK) Limited,A001701,50234434,618.00,103.00,,
North West Leicestershire District Council ,31UH ,HLBC,Leisure Centres,Hermitage Bar & Catering,Catering Supplies - Confectionery.,25/07/2012,1240416,515.26,Palmer Harvey Mclane Ltd,A001264,3/2942627,615.59,100.33,,
North West Leicestershire District Council ,31UH ,ENOT,Street Management,Environment Transport,Heavy Plant Machinery - JCB Dealership,25/07/2012,1240539,517.19,Watling JCB Ltd,A032114,13168036,620.63,103.44,,
North West Leicestershire District Council ,31UH ,HR,Corporate Director,Human Resources,Opticians - Eyetests,18/07/2012,1239945,525.00,Specsavers Corporate Eyecare,A028625,INVO/76625,525.00,0.00,,
North West Leicestershire District Council ,31UH ,ENOT,Street Management,Environment Transport,Street Supplies - Street Furniture ,04/07/2012,1239040,538.00,Broxap Limited,A031850,INV096113,645.60,107.60,,
North West Leicestershire District Council ,31UH ,CULTEV,Leisure & Culture,Cultural Services Arts & Events,Advert ,18/07/2012,1240134,540.00,Coalville Times Ltd,A000374,71358,648.00,108.00,,
North West Leicestershire District Council ,31UH ,FINPLA,Finance,Financial Planning,Subscriptions,18/07/2012,1240261,540.00,Audit Commission,A000110,6184725,648.00,108.00,,
North West Leicestershire District Council ,31UH ,HLBC,Leisure Centres,Hermitage Bar & Catering,Catering Supplies - Confectionery.,11/07/2012,1239664,543.30,Palmer Harvey Mclane Ltd,A001264,3/2940064,637.55,94.25,,
North West Leicestershire District Council ,31UH ,PROPFM,Property Services,Property Facilities Management,Catering - Vending Machines - Beverages,25/07/2012,1239906,546.40,LTT Vending Limited,A037981,INV0193209,546.40,0.00,,
North West Leicestershire District Council ,31UH ,ENOP,Street Management,Environment Parks,Building Supplies - Power tool sales,25/07/2012,1240346,548.53,Terratruck Distribution Services Ltd,A001648,2/423319,658.24,109.71,,
North West Leicestershire District Council ,31UH ,HLC,Leisure Centres,Hermitage Leisure Centre,Security - Bomb & Threat Detection for Elections,11/07/2012,1239706,551.25,Security Alert UK,A037299,8536,661.50,110.25,,
North West Leicestershire District Council ,31UH ,PROPCL,Property Services,Property Commercial Lettings,Horticulture - Internal Plants,11/07/2012,1239769,552.50,Urban Planters Leicestershire (limited),A003371,5524,663.00,110.50,,
North West Leicestershire District Council ,31UH ,HRAHRM,Housing Repairs,HRA Housing Repairs & Maintenance,PPE,25/07/2012,1240185,564.57,Westbury Industrial Supplies Limited,A009933,18249,677.48,112.91,,
North West Leicestershire District Council ,31UH ,HRAHRM,Housing Repairs,HRA Housing Repairs & Maintenance,Gas & Electricity - Boiler replacement,04/07/2012,1239152,569.44,Lakers UK,A031787,IN00013927,683.33,113.89,,
North West Leicestershire District Council ,31UH ,HRAOPS,Housing,HRA Older Persons Service,Rent payments,25/07/2012,1240458,572.39,Leicestershire County Council,A000950,25976027,572.39,0.00,,
North West Leicestershire District Council ,31UH ,HRAHRM,Housing Repairs,HRA Housing Repairs & Maintenance,Gas & Electricity - Boiler replacement,04/07/2012,1239138,575.00,Lakers UK,A031787,IN00013872,690.00,115.00,,
North West Leicestershire District Council ,31UH ,HRAHRM,Housing Repairs,HRA Housing Repairs & Maintenance,Gas & Electricity - Boiler replacement,18/07/2012,1240121,575.00,Lakers UK,A031787,IN00014719,690.00,115.00,,
North West Leicestershire District Council ,31UH ,LCM,Leisure & Culture,Leisure & Cult Mangt,Claim,18/07/2012,1239956,580.50,Measham Leisure Centre,A027454,12-Jun,580.50,0.00,,
North West Leicestershire District Council ,31UH ,HPLC,Leisure Centres,Hood Park Leisure Centre,Telecommunication - Line Rental,01/08/2012,1239301,580.83,Virgin Media Business,A035373,908060-041,697.00,116.17,,
North West Leicestershire District Council ,31UH ,ENOT,Street Management,Environment Transport,Vehicle Parts - Recycling Vehicles ,11/07/2012,1239743,581.86,Terberg Matec UK Limited,A001647,96268266,698.24,116.38,,
North West Leicestershire District Council ,31UH ,HPBC,Leisure Centres,Hood Park Bar and Catering,Catering Supplies - Confectionery.,04/07/2012,1239315,584.30,Palmer Harvey Mclane Ltd,A001264,3/2937718,689.53,105.23,,
North West Leicestershire District Council ,31UH ,ENOP,Street Management,Environment Parks,Horticulture - Maintenance Services,04/07/2012,1239039,586.40,Rigby Taylor Limited,A001392,RSIN0020804,703.68,117.28,,
North West Leicestershire District Council ,31UH ,HLC,Leisure Centres,Hermitage Leisure Centre,Alarms - Fire and Security,11/07/2012,1239403,590.90,ADT Fire And Security,A000021,21545000-41,709.08,118.18,,
North West Leicestershire District Council ,31UH ,PROPFM,Property Services,Property Facilities Management,Building - General Maintenance works - Minor framework,25/07/2012,1240193,595.00,Alf Wright Construction Limited,A036239,54164,714.00,119.00,,
North West Leicestershire District Council ,31UH ,HLC,Leisure Centres,Hermitage Leisure Centre,Water - Sewerage services,04/07/2012,1239297,597.00,Severn Trent Water Limited,A001468,2990021684,597.00,0.00,,
North West Leicestershire District Council ,31UH ,HLC,Leisure Centres,Hermitage Leisure Centre,Water - Sewerage services,25/07/2012,1240377,597.00,Severn Trent Water Limited,A001468,2990021684,597.00,0.00,,
North West Leicestershire District Council ,31UH ,ENOT,Street Management,Environment Transport,Engineering - Parts / Supplies,11/07/2012,1239537,599.16,Taylor Engineering & Fabrications Ltd,A036178,8004,718.99,119.83,,
North West Leicestershire District Council ,31UH ,ICT,Information Technology,ICT Services,Paper,18/07/2012,1239848,599.78,Antalis McNaughton Limited,A038178,JB2102460,719.74,119.96,,
North West Leicestershire District Council ,31UH ,HRAHM,Housing,HRA Housing Management,First Aid Training,11/07/2012,1239523,600.00,Abacus Response Training Limited,A038576,009/12,720.00,120.00,,
North West Leicestershire District Council ,31UH ,ENOT,Street Management,Environment Transport,Fuel ,25/07/2012,1240313,613.10,Pace Petroleum Ltd,A034942,8071481,643.76,30.66,,
North West Leicestershire District Council ,31UH ,CULTIC,Leisure & Culture,Cultural Services TIC,Performance,11/07/2012,1239466,613.80,Chapterhouse Theatre Company,A037693,MISC12 ASHBYCASTKLEE,613.80,0.00,,
North West Leicestershire District Council ,31UH ,ENOT,Street Management,Environment Transport,Environment - Specialist Hydraulic Driveline Supplies,11/07/2012,1239747,638.50,Driveline Systems Limited,A037762,25516,766.20,127.70,,
North West Leicestershire District Council ,31UH ,ICT,Information Technology,ICT Services,IT - software services,11/07/2012,1239427,645.28,Phoenix Software Limited,A001298,OP/I670875,774.34,129.06,,
North West Leicestershire District Council ,31UH ,HLC,Leisure Centres,Hermitage Leisure Centre,Water - Treatment Chemicals,11/07/2012,1239412,648.70,Stowlin Ltd,A001591,OLSI/66691,778.44,129.74,,
North West Leicestershire District Council ,31UH ,ENOT,Street Management,Environment Transport,Vehicle Parts,18/07/2012,1239841,650.00,Dennis Eagle Limited,A000522,DE10641310,780.00,130.00,,
North West Leicestershire District Council ,31UH ,ENOT,Street Management,Environment Transport,Vehicle Parts - Recycling Vehicles ,11/07/2012,1239408,652.43,Terberg Matec UK Limited,A001647,96267991,782.92,130.49,,
North West Leicestershire District Council ,31UH ,EES,Environmental Health,Environmental Services,Water - Sewerage services,25/07/2012,1240549,655.79,Severn Trent Water Limited,A001468,1520107008,655.79,0.00,,
North West Leicestershire District Council ,31UH ,PROPCL,Property Services,Property Commercial Lettings,Water - Sewerage services,04/07/2012,1239300,670.53,Severn Trent Water Limited,A001468,8311422851,670.53,0.00,,
North West Leicestershire District Council ,31UH ,ENOT,Street Management,Environment Transport,Bags - Polythene bags manufacturer,25/07/2012,1240309,674.10,BPI Recycled Products,A017624,INR258652,808.92,134.82,,
North West Leicestershire District Council ,31UH ,PROPFM,Property Services,Property Facilities Management,Security services,18/07/2012,1240171,677.00,Spectra Security Limited,A002190,212/1840,812.40,135.40,,
North West Leicestershire District Council ,31UH ,HRAHRM,Housing Repairs,HRA Housing Repairs & Maintenance,Gas & Electricity - Boiler replacement,04/07/2012,1239120,687.11,Lakers UK,A031787,IN00013853,824.53,137.42,,
North West Leicestershire District Council ,31UH ,HS,Housing Strategy,Community - Housing Strategy,Accomodation - Bed and Breakfast for Housing Strategy,18/07/2012,1239857,700.00,Pinewood Lodge,A032364,2,700.00,0.00,,
North West Leicestershire District Council ,31UH ,ENOP,Street Management,Environment Parks,Horticulture - Maintenance Services,25/07/2012,1240366,734.00,Rigby Taylor Limited,A001392,RSIN0023556,880.80,146.80,,
North West Leicestershire District Council ,31UH ,HRAHRM,Housing Repairs,HRA Housing Repairs & Maintenance,Gas & Electricity - Gas installation ,11/07/2012,1239600,744.33,British Gas Trading Limited,A026237,Q1368856/1,893.20,148.87,,
North West Leicestershire District Council ,31UH ,HRAHRM,Housing Repairs,HRA Housing Repairs & Maintenance,Gas & Electricity - Gas installation ,11/07/2012,1239602,744.33,British Gas Trading Limited,A026237,Q1369605/1,893.20,148.87,,
North West Leicestershire District Council ,31UH ,PROPFM,Property Services,Property Facilities Management,Gas / Electricity Boiler Repair Work,11/07/2012,1239458,758.00,AD Smith & Son (Nottm) Ltd,A000510,17078,909.60,151.60,,
North West Leicestershire District Council ,31UH ,EEHL,Environmental Health,Environmental Health & Licensing,Animals - Veterinary Care,18/07/2012,1239768,779.25,Eville And Jones Limited,A033670,613,935.10,155.85,,
North West Leicestershire District Council ,31UH ,ENOT,Street Management,Environment Transport,Vehicle Parts,04/07/2012,1239083,779.44,Dennis Eagle Limited,A000522,209770,935.33,155.89,,
North West Leicestershire District Council ,31UH ,ECCTV,Planning & Development,Environment - Town Centre/CCTV,Water - Sewerage services,11/07/2012,1239657,784.21,Severn Trent Water Limited,A001468,1520182872,784.21,0.00,,
North West Leicestershire District Council ,31UH ,HPLC,Leisure Centres,Hood Park Leisure Centre,Water - Sewerage services,25/07/2012,1240372,789.00,Severn Trent Water Limited,A001468,4740052077,789.00,0.00,,
North West Leicestershire District Council ,31UH ,HPLC,Leisure Centres,Hood Park Leisure Centre,Water - Sewerage services,25/07/2012,1240374,789.00,Severn Trent Water Limited,A001468,4740052077,789.00,0.00,,
North West Leicestershire District Council ,31UH ,HRAHM,Housing,HRA Housing Management,Insurance,11/07/2012,1239717,824.56,Zurich Insurance Company,A033807,122032,874.03,49.47,,
North West Leicestershire District Council ,31UH ,EPP,Planning & Development,Environment Planning Policy,Advertising Agency,25/07/2012,1239829,832.19,Euro RSCG Riley,A001395,515079,998.45,166.26,,
North West Leicestershire District Council ,31UH ,HLC,Leisure Centres,Hermitage Leisure Centre,Claim,11/07/2012,1239449,833.34,Measham Leisure Centre,A027454,LIFESTYLE CLAIM MAY,"1,000.00",166.66,,
North West Leicestershire District Council ,31UH ,HLC,Leisure Centres,Hermitage Leisure Centre,Claim,25/07/2012,1240427,833.34,Measham Leisure Centre,A027454,LIFESTYLE MAY 12,"1,000.00",166.66,,
North West Leicestershire District Council ,31UH ,HS,Housing Strategy,Community - Housing Strategy,Accomodation - Bed and Breakfast for Housing Strategy,25/07/2012,1240289,840.00,Pinewood Lodge,A032364,6,840.00,0.00,,
North West Leicestershire District Council ,31UH ,HRAHRM,Housing Repairs,HRA Housing Repairs & Maintenance,Gas & Electricity - Boiler replacement,04/07/2012,1239106,843.57,Lakers UK,A031787,IN00012640,"1,012.28",168.71,,
North West Leicestershire District Council ,31UH ,PROPFM,Property Services,Property Facilities Management,Valuation Report,18/07/2012,1239884,874.00,Valuation Office Agency,A034291,2.5E+13,"1,048.80",174.80,,
North West Leicestershire District Council ,31UH ,HRACS,Housing,HRA Customer Services,Stationary,25/07/2012,1236035,876.00,G & B (Office Supplies),A000646,SINV00239661,"1,051.20",175.20,,
North West Leicestershire District Council ,31UH ,ENOT,Street Management,Environment Transport,Vehicle Parts - Recycling Vehicles ,25/07/2012,1240347,878.15,Terberg Matec UK Limited,A001647,96266806,"1,053.78",175.63,,
North West Leicestershire District Council ,31UH ,HRAHM,Housing,HRA Housing Management,Energy Surveyors,18/07/2012,1239838,884.00,Energico,A039091,3054,"1,060.80",176.80,,
North West Leicestershire District Council ,31UH ,HRAHRM,Housing Repairs,HRA Housing Repairs & Maintenance,Security Systems - Fire Detection,04/07/2012,1239107,884.72,TECSERV UK LIMITED,A028261,86640,"1,061.66",176.94,,
North West Leicestershire District Council ,31UH ,HRAPBS,Housing,HRA Performance & Business Support,"ICT - Software, Maintenance and Licenses for IBS Housing",25/07/2012,1240357,900.00,Capita Business Services Ltd,A002968,92507157,"1,080.00",180.00,,
North West Leicestershire District Council ,31UH ,CULTYP,Leisure & Culture,Cultural Services Children & YoungPeople,Home Safety Assessments,11/07/2012,1239722,905.00,Safe Start-Home Safety,A039090,82,905.00,0.00,,
North West Leicestershire District Council ,31UH ,ENOT,Street Management,Environment Transport,Fuel ,04/07/2012,1239218,913.50,Pace Petroleum Ltd,A034942,7998363,959.18,45.68,,
North West Leicestershire District Council ,31UH ,EXCH,Finance,Exchequer Services,IT - software services,04/07/2012,1239066,916.15,Selima Limited,A010859,2389,"1,099.38",183.23,,
North West Leicestershire District Council ,31UH ,HLC,Leisure Centres,Hermitage Leisure Centre,Subscription - Accreditation Quest Standard,04/07/2012,1239165,950.00,Quest & NBS,A038334,2030,"1,140.00",190.00,,
North West Leicestershire District Council ,31UH ,ENOT,Street Management,Environment Transport,Tyre Supplier,25/07/2012,1238740,960.00,Bandvulc Tyres Ltd,A033268,306262,"1,152.00",192.00,,
North West Leicestershire District Council ,31UH ,EEHL,Environmental Health,Environmental Health & Licensing,Animals - Veterinary Care,25/07/2012,1240299,961.08,Eville And Jones Limited,A033670,631,"1,153.30",192.22,,
North West Leicestershire District Council ,31UH ,PROPFM,Property Services,Property Facilities Management,Consultancy Services -Property CDM,25/07/2012,1240434,975.00,Wm Saunders Partnership LLP,A035772,LE 1178,"1,170.00",195.00,,
North West Leicestershire District Council ,31UH ,LDCE,Legal & Democratic,Civic Expenses,IT - software licence,11/07/2012,1239636,995.00,Associated Knowledge Systems Ltd,A021795,IX-0704,"1,194.00",199.00,,
North West Leicestershire District Council ,31UH ,PROPCL,Property Services,Property Commercial Lettings,Building - General Maintenance works - Minor framework,04/07/2012,1239045,"1,008.28",Alf Wright Construction Limited,A036239,54040,"1,209.94",201.66,,
North West Leicestershire District Council ,31UH ,HRAHRM,Housing Repairs,HRA Housing Repairs & Maintenance,Waste - Tipping building,18/07/2012,1240158,"1,011.20",Ward Recycling,A035471,WSI173413,"1,213.44",202.24,,
North West Leicestershire District Council ,31UH ,ENOT,Street Management,Environment Transport,Tyre Supplier,18/07/2012,1239955,"1,024.92",Malvern Tyres,A035175,26I07640,"1,229.90",204.98,,
North West Leicestershire District Council ,31UH ,HPLC,Leisure Centres,Hood Park Leisure Centre,Leisure - Swimwear and accessories,04/07/2012,1239189,"1,026.00",Zoggs International Ltd,A001833,I-0164153,"1,231.20",205.20,,
North West Leicestershire District Council ,31UH ,HRAHRM,Housing Repairs,HRA Housing Repairs & Maintenance,Gas & Electricity - Boiler replacement,25/07/2012,1240602,"1,028.28",Lakers UK,A031787,IN00014712,"1,233.94",205.66,,
North West Leicestershire District Council ,31UH ,HRAHRM,Housing Repairs,HRA Housing Repairs & Maintenance,Gas & Electricity - Boiler replacement,25/07/2012,1240604,"1,048.59",Lakers UK,A031787,IN00014715,"1,258.31",209.72,,
North West Leicestershire District Council ,31UH ,ICT,Information Technology,ICT Services,IT - solutions,11/07/2012,1237599,"1,050.00",ANS Group Plc,A034753,994399,"1,260.00",210.00,,
North West Leicestershire District Council ,31UH ,HRAOPS,Housing,HRA Older Persons Service,Water - Sewerage services,11/07/2012,1239482,"1,051.30",Severn Trent Water Limited,A001468,8311595521,"1,051.30",0.00,,
North West Leicestershire District Council ,31UH ,EXCH,Finance,Exchequer Services,Debt Collection,11/07/2012,1239468,"1,055.16",Kings Armoured Security Services Ltd,A004468,78003,"1,266.18",211.02,,
North West Leicestershire District Council ,31UH ,HRAHRM,Housing Repairs,HRA Housing Repairs & Maintenance,Gas & Electricity - Boiler replacement,04/07/2012,1239124,"1,083.91",Lakers UK,A031787,IN00013858,"1,300.69",216.78,,
North West Leicestershire District Council ,31UH ,ENOT,Street Management,Environment Transport,Heavy Plant Machinery - JCB Dealership,25/07/2012,1240542,"1,085.81",Watling JCB Ltd,A032114,13168081,"1,302.97",217.16,,
North West Leicestershire District Council ,31UH ,ENOP,Street Management,Environment Parks,Grounds Maintenance - Landscaping,18/07/2012,1239944,"1,112.50",Manor Landscapes,A035186,NWLDC295,"1,112.50",0.00,,
North West Leicestershire District Council ,31UH ,HPLC,Leisure Centres,Hood Park Leisure Centre,Leisure - Swimwear and accessories,18/07/2012,1240150,"1,120.50",Zoggs International Ltd,A001833,I-0166434,"1,344.60",224.10,,
North West Leicestershire District Council ,31UH ,HRAHRM,Housing Repairs,HRA Housing Repairs & Maintenance,Fuel servicing (Hsg Maintenance),25/07/2012,1240761,"1,121.95",Elite Sweep Service,A035675,717,"1,346.34",224.39,,
North West Leicestershire District Council ,31UH ,EES,Environmental Health,Environmental Services,Water - Sewerage services,18/07/2012,1240285,"1,180.68",Severn Trent Water Limited,A001468,8310254026,"1,180.68",0.00,,
North West Leicestershire District Council ,31UH ,HRAHRM,Housing Repairs,HRA Housing Repairs & Maintenance,Gas & Electricity - Boiler replacement,04/07/2012,1239135,"1,193.25",Lakers UK,A031787,IN00013869,"1,431.90",238.65,,
North West Leicestershire District Council ,31UH ,HRAHM,Housing,HRA Housing Management,Printing - Lot 2 + 3,25/07/2012,1240767,"1,209.00",The Barkby Thorpe Press,A037241,30444,"1,209.00",0.00,,
North West Leicestershire District Council ,31UH ,HRAHRM,Housing Repairs,HRA Housing Repairs & Maintenance,Waste - Tipping building,25/07/2012,1240534,"1,245.04",Ward Recycling,A035471,WSI174516,"1,494.05",249.01,,
North West Leicestershire District Council ,31UH ,HRAHRM,Housing Repairs,HRA Housing Repairs & Maintenance,Gas & Electricity - Boiler replacement,04/07/2012,1239129,"1,295.15",Lakers UK,A031787,IN00013863,"1,554.18",259.03,,
North West Leicestershire District Council ,31UH ,CULTYP,Leisure & Culture,Cultural Services Children & YoungPeople,Event - Thurs night drop in,18/07/2012,1239958,"1,296.85",Connexions Leicester Shire,A010358,1300,"1,556.22",259.37,,
North West Leicestershire District Council ,31UH ,EEHL,Environmental Health,Environmental Health & Licensing,Animals - Boarding Kennels,25/07/2012,1240533,"1,300.50",College Garth Boarding Kennels,A000385,316,"1,605.60",305.10,,
North West Leicestershire District Council ,31UH ,EEHL,Environmental Health,Environmental Health & Licensing,Grant payment,18/07/2012,1239960,"1,309.00",Leicestershire County Council,A038469,DM/1650,"1,309.00",0.00,,
North West Leicestershire District Council ,31UH ,HRAHRM,Housing Repairs,HRA Housing Repairs & Maintenance,Fuel servicing (Hsg Maintenance),11/07/2012,1239621,"1,310.00",Elite Sweep Service,A035675,692,"1,572.00",262.00,,
North West Leicestershire District Council ,31UH ,HRAHRM,Housing Repairs,HRA Housing Repairs & Maintenance,Fuel servicing (Hsg Maintenance),11/07/2012,1239622,"1,310.00",Elite Sweep Service,A035675,693,"1,572.00",262.00,,
North West Leicestershire District Council ,31UH ,ENOT,Street Management,Environment Transport,Road fund licences,25/07/2012,1240512,"1,313.00",Post Office Limited,A008559,LICENCES,"1,313.00",0.00,,
North West Leicestershire District Council ,31UH ,ENOWM,Street Management,Environment Waste Management,Storage -Polythene Sacks,04/07/2012,1239027,"1,316.64",Acedag Limited,A030523,30661,"1,579.97",263.33,,
North West Leicestershire District Council ,31UH ,HRAHRM,Housing Repairs,HRA Housing Repairs & Maintenance,Fuel servicing (Hsg Maintenance),11/07/2012,1239623,"1,320.00",Elite Sweep Service,A035675,694,"1,584.00",264.00,,
North West Leicestershire District Council ,31UH ,PROPCL,Property Services,Property Commercial Lettings,#N/A,04/07/2012,1239065,"1,350.00",Lambert Smith Hampton,A020974,ARINV/00130087,"1,620.00",270.00,,
North West Leicestershire District Council ,31UH ,ECP,Planning & Development,Environment Community Planning,Training,11/07/2012,1239642,"1,372.92",Hinckley & Bosworth Borough Council,A000770,4000368865,"1,372.92",0.00,,
North West Leicestershire District Council ,31UH ,ECCTV,Planning & Development,Environment - Town Centre/CCTV,Security Services - CCTV Maintenance,18/07/2012,1239853,"1,409.33",Quadrant Security Group Limited,A035493,43737,"1,691.20",281.87,,
North West Leicestershire District Council ,31UH ,HRAHM,Housing,HRA Housing Management,Fuel - solid,18/07/2012,1240173,"1,585.09",Coal4Energy Ltd,A031928,58201,"1,902.11",317.02,,
North West Leicestershire District Council ,31UH ,HRAOPS,Housing,HRA Older Persons Service,Fuel - solid,11/07/2012,1239487,"1,601.17",Coal4Energy Ltd,A031928,57879,"1,921.40",320.23,,
North West Leicestershire District Council ,31UH ,HPLC,Leisure Centres,Hood Park Leisure Centre,Energy - Electricity - Contract 1,25/07/2012,1240375,"1,663.62",Southern Electric,A030266,701485672/0009,"1,996.34",332.72,,
North West Leicestershire District Council ,31UH ,ICT,Information Technology,ICT Services,IT - Equipment,11/07/2012,1239550,"1,800.00",Dell Computer Corporation Ltd,A000470,7401946028,"2,160.00",360.00,,
North West Leicestershire District Council ,31UH ,ICT,Information Technology,ICT Services,IT - Telecommunications and data services,18/07/2012,1240135,"1,824.58",Freedom Communications (UK) Ltd,A032826,100953,"2,189.50",364.92,,
North West Leicestershire District Council ,31UH ,HPLC,Leisure Centres,Hood Park Leisure Centre,Water - Sewerage services,25/07/2012,1240371,"1,863.05",Severn Trent Water Limited,A001468,5920022231,"1,863.05",0.00,,
North West Leicestershire District Council ,31UH ,ICT,Information Technology,ICT Services,Photocopiers and consumables,18/07/2012,1240281,"1,863.38",Danwood Contract Rentals,A033719,REF JASON CROCKFORD,"2,189.47",326.09,,
North West Leicestershire District Council ,31UH ,ENOT,Street Management,Environment Transport,Tyre Supplier,25/07/2012,1240302,"1,920.00",Bandvulc Tyres Ltd,A033268,307823,"2,304.00",384.00,,
North West Leicestershire District Council ,31UH ,HLC,Leisure Centres,Hermitage Leisure Centre,Water - Sewerage services,18/07/2012,1239893,"1,976.75",Severn Trent Water Limited,A001468,4060022567,"1,976.75",0.00,,
North West Leicestershire District Council ,31UH ,HRAOPS,Housing,HRA Older Persons Service,Alarms - older persons system repairs and maintenance,18/07/2012,1240182,"1,990.00",Tunstall Healthcare (UK) Limited,A001701,3IN/10204028,"2,388.00",398.00,,
North West Leicestershire District Council ,31UH ,HRAPBS,Housing,HRA Performance & Business Support,"ICT - Software, Maintenance and Licenses for IBS Housing",04/07/2012,1237663,"1,993.13",Capita Business Services Ltd,A002968,92447074,"2,391.76",398.63,,
North West Leicestershire District Council ,31UH ,LCM,Leisure & Culture,Leisure & Cult Mangt,Rent payments,25/07/2012,1240535,"2,000.00",Leicestershire County Council,A000950,25713346,"2,400.00",400.00,,
North West Leicestershire District Council ,31UH ,ECP,Planning & Development,Environment Community Planning,Catering Supplies ,11/07/2012,1239539,"2,000.00",Delib,A039059,40809,"2,400.00",400.00,,
North West Leicestershire District Council ,31UH ,ENOT,Street Management,Environment Transport,Vehicle Parts - Recycling Vehicles ,25/07/2012,1240301,"2,016.60",Terberg Matec UK Limited,A001647,96268709,"2,419.94",403.34,,
North West Leicestershire District Council ,31UH ,HRAHRM,Housing Repairs,HRA Housing Repairs & Maintenance,Gas & Electricity - Boiler replacement,04/07/2012,1239115,"2,041.25",Lakers UK,A031787,IN00013848,"2,449.50",408.25,,
North West Leicestershire District Council ,31UH ,HRAHRM,Housing Repairs,HRA Housing Repairs & Maintenance,Gas & Electricity - Boiler replacement,04/07/2012,1239116,"2,064.41",Lakers UK,A031787,IN00013849,"2,477.29",412.88,,
North West Leicestershire District Council ,31UH ,HRAHRM,Housing Repairs,HRA Housing Repairs & Maintenance,Gas & Electricity - Boiler replacement,25/07/2012,1240593,"2,083.03",Lakers UK,A031787,IN00014701,"2,499.64",416.61,,
North West Leicestershire District Council ,31UH ,ENVDS,Environment Directorate,Environment - Directorate Support,Subscription - Sparse Membership,18/07/2012,1239947,"2,095.00",North Kesteven District Council,A036297,FN334638,"2,095.00",0.00,,
North West Leicestershire District Council ,31UH ,PROPCL,Property Services,Property Commercial Lettings,Mail Supplies -Franking Machine,11/07/2012,1239445,"2,119.65",Purchase Power,A008204,AF299295,"2,139.58",19.93,,
North West Leicestershire District Council ,31UH ,HRAHRM,Housing Repairs,HRA Housing Repairs & Maintenance,Gas & Electricity - Boiler replacement,25/07/2012,1240594,"2,125.14",Lakers UK,A031787,IN00014702,"2,550.17",425.03,,
North West Leicestershire District Council ,31UH ,FINPLA,Finance,Financial Planning,Rent payments,11/07/2012,1239830,"2,150.24",Measham Development Trust,A031515,RENTAL 11/12,"2,150.24",0.00,,
North West Leicestershire District Council ,31UH ,FINPLA,Finance,Financial Planning,Rent payments,25/07/2012,1240354,"2,150.24",Measham Development Trust,A031515,TANYARD HOUSE,"2,150.24",0.00,,
North West Leicestershire District Council ,31UH ,HRAHRM,Housing Repairs,HRA Housing Repairs & Maintenance,Gas & Electricity - Boiler replacement,11/07/2012,1239606,"2,167.00",Lakers UK,A031787,IN00014110,"2,600.40",433.40,,
North West Leicestershire District Council ,31UH ,CULTIC,Leisure & Culture,Cultural Services TIC,Grants,11/07/2012,1239464,"2,217.60",Ashby Dramatic Society,A021686,ADS12 2306JONNY,"2,217.60",0.00,,
North West Leicestershire District Council ,31UH ,HRAHRM,Housing Repairs,HRA Housing Repairs & Maintenance,Housing Maintenance - Replacement Windows and Doors,04/07/2012,1239096,"2,218.38",SBP Limited (Trading as Plastal & Permadoor),A036741,F2539/3,"2,662.05",443.67,,
North West Leicestershire District Council ,31UH ,HRAPBS,Housing,HRA Performance & Business Support,Home swapper pack,25/07/2012,1240370,"2,280.00",Scout Solutions Projects Limited,A033400,10876,"2,736.00",456.00,,
North West Leicestershire District Council ,31UH ,HRAHRM,Housing Repairs,HRA Housing Repairs & Maintenance,Gas & Electricity - Boiler replacement,25/07/2012,1240598,"2,340.15",Lakers UK,A031787,IN00014708,"2,808.18",468.03,,
North West Leicestershire District Council ,31UH ,LDLS,Legal & Democratic,Legal Services,Legal services - town planning,11/07/2012,1239467,"2,356.67",Marrons Consultancies Limited,A016315,15121,"2,828.00",471.33,,
North West Leicestershire District Council ,31UH ,HRAHRM,Housing Repairs,HRA Housing Repairs & Maintenance,Gas & Electricity - Boiler replacement,04/07/2012,1239118,"2,367.54",Lakers UK,A031787,IN00013851,"2,841.05",473.51,,
North West Leicestershire District Council ,31UH ,HRAHRM,Housing Repairs,HRA Housing Repairs & Maintenance,Gas & Electricity - Boiler replacement,04/07/2012,1239144,"2,400.00",Lakers UK,A031787,IN00013917,"2,880.00",480.00,,
North West Leicestershire District Council ,31UH ,HRAHRM,Housing Repairs,HRA Housing Repairs & Maintenance,Gas & Electricity - Boiler replacement,04/07/2012,1239158,"2,400.00",Lakers UK,A031787,IN00013935,"2,880.00",480.00,,
North West Leicestershire District Council ,31UH ,HRAHRM,Housing Repairs,HRA Housing Repairs & Maintenance,Gas & Electricity - Boiler replacement,18/07/2012,1240102,"2,400.00",Lakers UK,A031787,IN00014541,"2,880.00",480.00,,
North West Leicestershire District Council ,31UH ,HRAHRM,Housing Repairs,HRA Housing Repairs & Maintenance,Gas & Electricity - Boiler replacement,18/07/2012,1240115,"2,400.00",Lakers UK,A031787,IN00014704,"2,880.00",480.00,,
North West Leicestershire District Council ,31UH ,HRAHRM,Housing Repairs,HRA Housing Repairs & Maintenance,Gas & Electricity - Boiler replacement,25/07/2012,1240562,"2,402.79",Lakers UK,A031787,IN00013918,"2,883.35",480.56,,
North West Leicestershire District Council ,31UH ,HLC,Leisure Centres,Hermitage Leisure Centre,Energy - Electricity - Contract 1,25/07/2012,1240379,"2,430.83",Southern Electric,A030266,041314786/0053,"2,916.99",486.16,,
North West Leicestershire District Council ,31UH ,HRAHRM,Housing Repairs,HRA Housing Repairs & Maintenance,Gas & Electricity - Boiler replacement,04/07/2012,1239123,"2,473.75",Lakers UK,A031787,IN00013857,"2,968.50",494.75,,
North West Leicestershire District Council ,31UH ,HRAHRM,Housing Repairs,HRA Housing Repairs & Maintenance,Gas & Electricity - Boiler replacement,04/07/2012,1239119,"2,478.54",Lakers UK,A031787,IN00013852,"2,974.25",495.71,,
North West Leicestershire District Council ,31UH ,HRAHRM,Housing Repairs,HRA Housing Repairs & Maintenance,Gas & Electricity - Boiler replacement,25/07/2012,1240603,"2,483.68",Lakers UK,A031787,IN00014713,"2,980.42",496.74,,
North West Leicestershire District Council ,31UH ,ECP,Planning & Development,Environment Community Planning,Surveys - Valuation Office Agency,18/07/2012,1240284,"2,500.00",Valuation Office Agency,A036190,2.5E+13,"3,000.00",500.00,,
North West Leicestershire District Council ,31UH ,NACCS,Neighbourhoods & Communities,N & C Community Safety,Rent payments,25/07/2012,1240455,"2,500.00",Leicestershire County Council,A000950,25302812,"2,500.00",0.00,,
North West Leicestershire District Council ,31UH ,HRAHRM,Housing Repairs,HRA Housing Repairs & Maintenance,Gas & Electricity - Boiler replacement,04/07/2012,1239143,"2,503.95",Lakers UK,A031787,IN00013916,"3,004.74",500.79,,
North West Leicestershire District Council ,31UH ,HRAHRM,Housing Repairs,HRA Housing Repairs & Maintenance,Gas & Electricity - Boiler replacement,04/07/2012,1239121,"2,521.79",Lakers UK,A031787,IN00013854,"3,026.15",504.36,,
North West Leicestershire District Council ,31UH ,HRAHRM,Housing Repairs,HRA Housing Repairs & Maintenance,Gas & Electricity - Boiler replacement,04/07/2012,1239147,"2,521.79",Lakers UK,A031787,IN00013921,"3,026.15",504.36,,
North West Leicestershire District Council ,31UH ,ENOT,Street Management,Environment Transport,Vehicle Services - Axle Weighing,04/07/2012,1239210,"2,590.00",Axle Weight Technology Ltd,A032268,14970,"3,108.00",518.00,,
North West Leicestershire District Council ,31UH ,HRAHRM,Housing Repairs,HRA Housing Repairs & Maintenance,Gas & Electricity - Boiler replacement,25/07/2012,1240601,"2,621.09",Lakers UK,A031787,IN00014711,"3,145.31",524.22,,
North West Leicestershire District Council ,31UH ,HRAHRM,Housing Repairs,HRA Housing Repairs & Maintenance,Gas & Electricity - Boiler replacement,25/07/2012,1240599,"2,633.53",Lakers UK,A031787,IN00014709,"3,160.24",526.71,,
North West Leicestershire District Council ,31UH ,HRAHRM,Housing Repairs,HRA Housing Repairs & Maintenance,Gas & Electricity - Boiler replacement,25/07/2012,1240559,"2,644.40",Lakers UK,A031787,IN00013341,"3,173.28",528.88,,
North West Leicestershire District Council ,31UH ,HRAPBS,Housing,HRA Performance & Business Support,"ICT - Software, Maintenance and Licenses for IBS Housing",11/07/2012,1239571,"2,750.00",Capita Business Services Ltd,A002968,92440004,"3,300.00",550.00,,
North West Leicestershire District Council ,31UH ,EES,Environmental Health,Environmental Services,Rent payments,18/07/2012,1240160,"2,774.00",Leicestershire County Council,A000950,DM1648  REF 310652,"2,774.00",0.00,,
North West Leicestershire District Council ,31UH ,HRAHRM,Housing Repairs,HRA Housing Repairs & Maintenance,Housing Maintenance - Replacement Windows and Doors,04/07/2012,1239097,"2,775.34",SBP Limited (Trading as Plastal & Permadoor),A036741,F2539/4,"3,330.40",555.06,,
North West Leicestershire District Council ,31UH ,HRAHRM,Housing Repairs,HRA Housing Repairs & Maintenance,Housing Maintenance - Replacement Windows and Doors,04/07/2012,1239095,"2,775.34",SBP Limited (Trading as Plastal & Permadoor),A036741,F2539/2,"3,330.40",555.06,,
North West Leicestershire District Council ,31UH ,HRAHRM,Housing Repairs,HRA Housing Repairs & Maintenance,Housing Maintenance - Replacement Windows and Doors,04/07/2012,1239094,"2,775.34",SBP Limited (Trading as Plastal & Permadoor),A036741,F2539/1,"3,330.40",555.06,,
North West Leicestershire District Council ,31UH ,HRAHRM,Housing Repairs,HRA Housing Repairs & Maintenance,Building - General Maintenance works - Minor framework,25/07/2012,1240741,"2,810.00",Alf Wright Construction Limited,A036239,54167,"3,372.00",562.00,,
North West Leicestershire District Council ,31UH ,HRAHM,Housing,HRA Housing Management,Fuel - solid,18/07/2012,1240174,"2,903.33",Coal4Energy Ltd,A031928,58202,"3,484.00",580.67,,
North West Leicestershire District Council ,31UH ,HRAHRM,Housing Repairs,HRA Housing Repairs & Maintenance,Gas & Electricity - Boiler replacement,25/07/2012,1240596,"2,936.64",Lakers UK,A031787,IN00014705,"3,523.97",587.33,,
North West Leicestershire District Council ,31UH ,HRAHRM,Housing Repairs,HRA Housing Repairs & Maintenance,Gas & Electricity - Boiler replacement,04/07/2012,1239117,"2,995.67",Lakers UK,A031787,IN00013850,"3,594.80",599.13,,
North West Leicestershire District Council ,31UH ,EEHL,Environmental Health,Environmental Health & Licensing,Grant payment,25/07/2012,1240467,"3,023.00",Leicestershire County Council,A038469,DM/1661,"3,023.00",0.00,,
North West Leicestershire District Council ,31UH ,HR,Corporate Director,Human Resources,Charity Services - Childcare Vouchers,18/07/2012,1239920,"3,148.00",PES Limited,A035521,614,"3,148.00",0.00,,
North West Leicestershire District Council ,31UH ,HRAHRM,Housing Repairs,HRA Housing Repairs & Maintenance,Gas & Electricity - Boiler replacement,04/07/2012,1239114,"3,159.79",Lakers UK,A031787,IN00013847,"3,791.75",631.96,,
North West Leicestershire District Council ,31UH ,EEHL,Environmental Health,Environmental Health & Licensing,Building Services,25/07/2012,1240511,"3,242.71",John Merison BMC Ltd,A001092,DM/1651,"3,242.71",0.00,,
North West Leicestershire District Council ,31UH ,EEHL,Environmental Health,Environmental Health & Licensing,Grant payment,04/07/2012,1239402,"3,286.00",Leicestershire County Council,A038469,DM/1513,"3,286.00",0.00,,
North West Leicestershire District Council ,31UH ,PROPFM,Property Services,Property Facilities Management,Energy - Electricity - Contract 1,18/07/2012,1239835,"3,336.72",Southern Electric,A030266,811314793/0053,"4,004.06",667.34,,
North West Leicestershire District Council ,31UH ,EXCH,Finance,Exchequer Services,Electricity - Supply for contract 4,18/07/2012,1239907,"3,723.67",British Gas Business,A034733,A3414850 MSAM23258,"4,047.11",323.44,,
North West Leicestershire District Council ,31UH ,EES,Environmental Health,Environmental Services,Rent payments,18/07/2012,1239889,"3,823.30",D'Zign Uk Group,A037057,ROYAL HOTEL RENTAL,"3,823.30",0.00,,
North West Leicestershire District Council ,31UH ,ECCTV,Planning & Development,Environment - Town Centre/CCTV,Security - Provide Monitoring Services in respect of CCTV,18/07/2012,1239846,"3,923.00",Premier Security Services (Midlands) Limited,A038132,5704,"4,707.60",784.60,,
North West Leicestershire District Council ,31UH ,HRAHRM,Housing Repairs,HRA Housing Repairs & Maintenance,Gas & Electricity - Boiler replacement,25/07/2012,1240595,"3,991.11",Lakers UK,A031787,IN00014703,"4,789.33",798.22,,
North West Leicestershire District Council ,31UH ,CULTYP,Leisure & Culture,Cultural Services Children & YoungPeople,Rent payments,18/07/2012,1240161,"4,000.00",Leicestershire County Council,A000950,25975534,"4,000.00",0.00,,
North West Leicestershire District Council ,31UH ,ICT,Information Technology,ICT Services,IT - Telephone and computing,25/07/2012,1240342,"4,046.55",Virgin Media Business,A008908,8.52721E+11,"4,855.85",809.30,,
North West Leicestershire District Council ,31UH ,EDC,Planning & Development,Environment - Development Control,Consultancy - Habitats Regulations,25/07/2012,1240363,"4,166.67",David Tyldesley and Associates,A037619,3907,"5,000.00",833.33,,
North West Leicestershire District Council ,31UH ,EPP,Planning & Development,Environment Planning Policy,Printing - Lot 1 + 3,04/07/2012,1239213,"4,252.58",Leicestershire County Council Central Print,A037238,25405860,"4,252.58",0.00,,
North West Leicestershire District Council ,31UH ,NACCS,Neighbourhoods & Communities,N & C Community Safety,Service Level Agreement,25/07/2012,1240454,"4,290.00",Rural Community Council,A036136,277,"4,290.00",0.00,,
North West Leicestershire District Council ,31UH ,ECCTV,Planning & Development,Environment - Town Centre/CCTV,Security Services - CCTV Maintenance,25/07/2012,1240443,"4,607.00",Quadrant Security Group Limited,A035493,41236,"5,528.40",921.40,,
North West Leicestershire District Council ,31UH ,ICT,Information Technology,ICT Services,Photocopiers and consumables,13/07/2012,1239979,"4,818.04",The Danwood Group Ltd,A001301,3143624,"5,781.65",963.61,,
North West Leicestershire District Council ,31UH ,LCM,Leisure & Culture,Leisure & Cult Mangt,Grants,25/07/2012,1240532,"4,822.50",Care & Repair (West Leics) Ltd,A000297,1ST QTR PAYMENT,"4,822.50",0.00,,
North West Leicestershire District Council ,31UH ,ESS,Street Management,Environment - Street Scene,park equipment,25/07/2012,1240513,"4,999.00",Gravity Engineering Ltd,A035652,520,"5,998.80",999.80,,
North West Leicestershire District Council ,31UH ,CULTYP,Leisure & Culture,Cultural Services Children & YoungPeople,Charity Services - Voluntary services,11/07/2012,1239560,"5,101.70",MRC Community Action,A001208,PB 4/12 CC148,"5,101.70",0.00,,
North West Leicestershire District Council ,31UH ,HRAHRM,Housing Repairs,HRA Housing Repairs & Maintenance,Gas & Electricity - Boiler replacement,25/07/2012,1240557,"5,463.91",Lakers UK,A031787,IN00012316,"6,556.69","1,092.78",,
North West Leicestershire District Council ,31UH ,EPP,Planning & Development,Environment Planning Policy,Consultancy Services - Planning,25/07/2012,1240343,"5,530.00",Peter Brett Associates T/a Roger Tym & Partners,A028258,92765 CPO,"6,636.00","1,106.00",,
North West Leicestershire District Council ,31UH ,EES,Environmental Health,Environmental Services,Subscriptions -  Annual Revenue Contribution to Prospect Leics Ltd,25/07/2012,1240531,"5,769.25",Harborough District Council,A008631,D0003486,"5,769.25",0.00,,
North West Leicestershire District Council ,31UH ,HRAHM,Housing,HRA Housing Management,Rent payments,18/07/2012,1240177,"5,820.66",Leicestershire County Council,A000950,25207726,"6,984.79","1,164.13",,
North West Leicestershire District Council ,31UH ,ICT,Information Technology,ICT Services,Parish precepts,25/07/2012,1240308,"5,880.00",Charnwood Borough Council,A000323,56983134,"7,056.00","1,176.00",,
North West Leicestershire District Council ,31UH ,EXCH,Finance,Exchequer Services,Recruitment - Agency Broker,18/07/2012,1239834,"5,957.07",Comensura Limited,A036958,518300,"7,148.47","1,191.40",,
North West Leicestershire District Council ,31UH ,ESS,Street Management,Environment - Street Scene,Environment - Monitoring Equipment - Air Quality,04/07/2012,1239207,"6,000.00",TRL,A036596,88478792,"7,200.00","1,200.00",,
North West Leicestershire District Council ,31UH ,ICT,Information Technology,ICT Services,IT - solutions,18/07/2012,1239021,"6,000.00",ANS Group Plc,A034753,994599,"7,200.00","1,200.00",,
North West Leicestershire District Council ,31UH ,HRAHM,Housing,HRA Housing Management,Rent payments,18/07/2012,1240178,"6,041.82",Leicestershire County Council,A000950,25207725,"7,250.18","1,208.36",,
North West Leicestershire District Council ,31UH ,HRAHRM,Housing Repairs,HRA Housing Repairs & Maintenance,Gas & Electricity - Boiler replacement,18/07/2012,1240024,"6,108.60",Lakers UK,A031787,IN00014367,"7,330.32","1,221.72",,
North West Leicestershire District Council ,31UH ,SPA,Leisure & Culture,Sport & Physical Activity,Rent payments,11/07/2012,1239555,"6,314.00",Leicestershire County Council,A000950,27200504,"6,314.00",0.00,,
North West Leicestershire District Council ,31UH ,HRAHRM,Housing Repairs,HRA Housing Repairs & Maintenance,Gas & Electricity - Boiler replacement,18/07/2012,1239986,"6,365.43",Lakers UK,A031787,IN00012451,"7,638.52","1,273.09",,
North West Leicestershire District Council ,31UH ,NACCS,Neighbourhoods & Communities,N & C Community Safety,Rent payments,25/07/2012,1240456,"6,925.00",Leicestershire County Council,A000950,26000883,"8,310.00","1,385.00",,
North West Leicestershire District Council ,31UH ,EPP,Planning & Development,Environment Planning Policy,Consultancy Services - Planning,11/07/2012,1239452,"7,170.00",Peter Brett Associates T/a Roger Tym & Partners,A028258,92713 CPO,"8,604.00","1,434.00",,
North West Leicestershire District Council ,31UH ,HRAHRM,Housing Repairs,HRA Housing Repairs & Maintenance,Fuel servicing (Hsg Maintenance),25/07/2012,1240544,"7,248.19",Elite Sweep Service,A035675,SOLID FUEL AGREEMENT,"8,697.83","1,449.64",,
North West Leicestershire District Council ,31UH ,HRAHRM,Housing Repairs,HRA Housing Repairs & Maintenance,Gas & Electricity - Boiler replacement,25/07/2012,1240591,"7,520.00",Lakers UK,A031787,IN00014697,"9,024.00","1,504.00",,
North West Leicestershire District Council ,31UH ,EPP,Planning & Development,Environment Planning Policy,Consultancy Services - Planning,25/07/2012,1240344,"7,600.00",Peter Brett Associates T/a Roger Tym & Partners,A028258,92764 CPO,"9,120.00","1,520.00",,
North West Leicestershire District Council ,31UH ,CHEX,Chief Exec,Chief Executive,Economic Partnership Payment,18/07/2012,1240196,"8,000.00",Leicester City Council Accounts Receivable,A034295,82015311,"8,000.00",0.00,,
North West Leicestershire District Council ,31UH ,ENVDS,Environment Directorate,Environment - Directorate Support,Consultancy - Housing Strategy,18/07/2012,1239898,"8,500.00",GLHS Limited,A038376,262,"10,200.00","1,700.00",,
North West Leicestershire District Council ,31UH ,HRAPBS,Housing,HRA Performance & Business Support,Tenants Contents Insurance,11/07/2012,1239734,"8,661.84",Jardine Lloyd Thompson,A037657,JLT2012Q1,"8,661.84",0.00,,
North West Leicestershire District Council ,31UH ,FINPLA,Finance,Financial Planning,Grants,04/07/2012,1239272,"8,772.54",The National Forest Company,A027538,S106 CONTRIBUTION,"8,772.54",0.00,,
North West Leicestershire District Council ,31UH ,EXCH,Finance,Exchequer Services,Recruitment - Agency Broker,25/07/2012,1240348,"8,981.49",Comensura Limited,A036958,518532,"10,777.74","1,796.25",,
North West Leicestershire District Council ,31UH ,CULTHC,Leisure & Culture,Cultural Services Heritage,Grants,04/07/2012,1239253,"9,000.00",The National Forest Company,A027538,12/648,"10,800.00","1,800.00",,
North West Leicestershire District Council ,31UH ,HRAHRM,Housing Repairs,HRA Housing Repairs & Maintenance,Building - General Maintenance works - Minor framework,25/07/2012,1240740,"9,310.00",Alf Wright Construction Limited,A036239,54166,"11,172.00","1,862.00",,
North West Leicestershire District Council ,31UH ,HRAPBS,Housing,HRA Performance & Business Support,IT Services - Data Capture & Document Scanning,18/07/2012,1239778,"9,900.00",Bramble.cc Limited,A036895,2149,"11,880.00","1,980.00",,
North West Leicestershire District Council ,31UH ,EXCH,Finance,Exchequer Services,Recruitment - Agency Broker,11/07/2012,1239420,"10,080.54",Comensura Limited,A036958,518062,"12,096.67","2,016.13",,
North West Leicestershire District Council ,31UH ,EXCH,Finance,Exchequer Services,Recruitment - Agency Broker,04/07/2012,1239025,"11,111.72",Comensura Limited,A036958,517819,"13,333.99","2,222.27",,
North West Leicestershire District Council ,31UH ,FINPLA,Finance,Financial Planning,Training,04/07/2012,1239205,"13,450.00",Hinckley & Bosworth Borough Council,A000770,4000375926,"13,450.00",0.00,,
North West Leicestershire District Council ,31UH ,CULTEV,Leisure & Culture,Cultural Services Arts & Events,Grants,18/07/2012,1240283,"13,710.00",South and West Leicestershire,A037854,QUARTERLEY 2 OF 4,"13,710.00",0.00,,
North West Leicestershire District Council ,31UH ,FINPLA,Finance,Financial Planning,Rent payments,11/07/2012,1239831,"14,084.07",Blueprint Limited Partnership,A032013,RENTAL 11/12,"14,084.07",0.00,,
North West Leicestershire District Council ,31UH ,HRAHM,Housing,HRA Housing Management,Building Services,11/07/2012,1239771,"14,500.00",J Tomlinson Ltd,A033342,52521   3,"17,400.00","2,900.00",,
North West Leicestershire District Council ,31UH ,CULTYP,Leisure & Culture,Cultural Services Children & YoungPeople,Charity Services - Voluntary services,11/07/2012,1239561,"15,673.80",MRC Community Action,A001208,TL 4/12 CC149,"15,673.80",0.00,,
North West Leicestershire District Council ,31UH ,EXCH,Finance,Exchequer Services,Energy - Gas - Contract 2 + 5 + 6,10/07/2012,1239782,"16,624.20",Corona Energy Retail 4 Ltd,A035709,AS ATTAHCED SHEETS,"19,931.77","3,307.57",,
North West Leicestershire District Council ,31UH ,ENOT,Street Management,Environment Transport,Fuel ,04/07/2012,1239219,"19,665.00",Pace Petroleum Ltd,A034942,7998356,"23,598.00","3,933.00",,
North West Leicestershire District Council ,31UH ,ENOT,Street Management,Environment Transport,Fuel ,25/07/2012,1240314,"19,888.07",Pace Petroleum Ltd,A034942,8071477,"23,865.68","3,977.61",,
North West Leicestershire District Council ,31UH ,ICT,Information Technology,ICT Services,IT - software services,11/07/2012,1239255,"63,454.37",Phoenix Software Limited,A001298,OP/I670653,"76,145.23","12,690.86",,
North West Leicestershire District Council ,31UH ,HRAHRM,Housing Repairs,HRA Housing Repairs & Maintenance,Housing Repairs,10/07/2012,1239781,"65,370.29",Collective Enterprises Ltd,A036453,TNWL01,"78,444.25","13,073.96",,
,,,,,,,,"753,773.02",,,,,
